fUST/lending_fUST_20250428
["ID","MTS","AMOUNT","RATE_DAILY","PERIOD"]
[359229290,1745850638940,-500.0,0.00024999,2]
[359229291,1745850638949,-297.61069127,0.00024999,2]
[359229292,1745850638961,-202.38930873,0.00024999,2]
[359229293,1745850638971,-53.4427325,0.00024999,2]
[359229312,1745850641078,-446.5572675,0.00024999,2]
[359229313,1745850641087,-500.0,0.00024999,2]
[359229314,1745850641096,-500.0,0.00024999,2]
[359229315,1745850641107,-8.7986302,0.00025,2]
[359229316,1745850641118,-700.2151947,0.00025,2]
[359229317,1745850641129,-681.43147534,0.00025,2]
[359229367,1745850644527,-9488.13179807,0.00025,2]
[359229368,1745850644539,-126151.56455697,0.00025,2]
[359229369,1745850644551,-5559.05037223,0.00025,2]
[359229379,1745850646648,-16598.50591111,0.00025,2]
[359229381,1745850646738,-36217.32221951,0.00025,2]
[359229382,1745850646748,-500.0,0.00025,30]
[359229383,1745850646758,-700.000001,0.00025,30]
[359229384,1745850646768,-500.0,0.00025,30]
[359229385,1745850646778,-1790.23529827,0.00025,10]
[359229386,1745850646787,-1630.06815672,0.00025,14]
[359229387,1745850646797,-1056.2496841,0.00025,2]
[359229388,1745850646806,-2601.69854631,0.00025,2]
[359229389,1745850646815,-10364.0,0.00025,2]
[359229390,1745850646825,-206.42597531,0.00025,2]
[359229391,1745850646834,-840.21714333,0.00025,2]
[359229392,1745850646843,-4478.82276785,0.00025,2]
[359229393,1745850651512,207.0,0.00021,10]
[359229437,1745851831730,-151.0,0.00019904,2]
[359229439,1745851831740,-156.587,0.00019959,2]
[359229441,1745851831750,-162.380719,0.00020014,2]
[359229443,1745851831760,-157.76832993,0.00020024,2]
[359229444,1745851831769,-168.3888056,0.00020069,2]
[359229445,1745851831778,-174.61919141,0.00020124,2]
[359229446,1745851831787,-181.08010149,0.00020179,2]
[359229447,1745851831797,-187.78006525,0.00020234,2]
[359229448,1745851831807,-194.72792766,0.00020289,2]
[359229449,1745851831816,-201.93286099,0.00020344,2]
[359229450,1745851831826,-209.40437684,0.00020399,2]
[359229451,1745851831835,-217.15233878,0.00020454,2]
[359229452,1745851831845,-225.18697532,0.00020509,2]
[359229453,1745851831854,-233.51889341,0.00020564,2]
[359229454,1745851831863,-242.15909246,0.00020619,2]
[359229455,1745851831872,-251.11897888,0.00020674,2]
[359229456,1745851831881,-260.4103811,0.00020729,2]
[359229457,1745851831890,-270.0455652,0.00020784,2]
[359229458,1745851831899,-280.03725112,0.00020839,2]
[359229459,1745851831908,-290.39862941,0.00020894,2]
[359229460,1745851831918,-157.76832993,0.000209,2]
[359229461,1745851831927,-303.00560515,0.00020949,2]
[359229462,1745851831936,-300.0,0.00020999,2]
[359229463,1745851831945,-2903.9,0.00021,2]
[359229464,1745851831954,-989.30755037,0.00021,2]
[359229465,1745851831970,-451.79522765,0.00021,2]
[359229466,1745851831984,-1462.79722198,0.00021,2]
[359229467,1745851831993,-2903.9,0.00021,2]
[359229468,1745851832002,-2903.9,0.00021,2]
[359229469,1745851832011,-157.45,0.00021,2]
[359229470,1745851832020,-420.0,0.00022842,2]
[359229471,1745851832030,-167.52297858,0.00022889,2]
[359229472,1745851832039,-500.0,0.00022899,2]
[359229473,1745851832049,-8734.63,0.00022899,2]
[359229474,1745851832058,-500.0,0.00022899,2]
[359229475,1745851832067,-5201.15681711,0.000229,2]
[359229476,1745851832076,-1751.25625781,0.000229,4]
[359229477,1745851832085,-750.54881585,0.00022972,2]
[359229478,1745851832094,-48724.2354996,0.0002298,2]
[359229479,1745851832103,-400.0,0.00022987,2]
[359229480,1745851832115,-400.0,0.00022987,2]
[359229481,1745851832137,-504.24789912,0.00022987,2]
[359229482,1745851832152,-400.0,0.00022987,2]
[359229483,1745851832171,-500.0,0.00022988,2]
[359229484,1745851832190,-500.0,0.00022988,2]
[359229485,1745851832208,-270.0,0.00022988,2]
[359229486,1745851832224,-264.69487118,0.00022988,2]
[359229487,1745851832242,-500.0,0.00022988,2]
[359229488,1745851832257,-500.0,0.00022988,2]
[359229489,1745851832273,-500.0,0.00022988,2]
[359229490,1745851832291,-500.0,0.00022988,2]
[359229491,1745851832310,-425.37637199,0.00022988,2]
[359229492,1745851832322,-500.0,0.00022988,2]
[359229493,1745851832335,-500.0,0.00022988,2]
[359229494,1745851832354,-500.0,0.00022988,2]
[359229495,1745851832369,-500.0,0.00022988,2]
[359229496,1745851832384,-281.79695122,0.00022988,2]
[359229497,1745851832396,-500.0,0.00022988,2]
[359229498,1745851832413,-400.0,0.00022989,2]
[359229499,1745851832427,-519.05265213,0.00022989,2]
[359229500,1745851832442,-1606.16,0.00022989,2]
[359229501,1745851832457,-400.0,0.00022989,2]
[359229502,1745851832472,-400.0,0.00022989,2]
[359229503,1745851832488,-955.43,0.00022989,2]
[359229504,1745851832503,-500.0,0.00022989,2]
[359229505,1745851832518,-296.09321402,0.00022989,2]
[359229506,1745851832532,-8734.63,0.00022989,2]
[359229507,1745851832546,-8734.63,0.00022989,2]
[359229508,1745851832559,-8734.63,0.00022989,2]
[359229509,1745851832576,-8734.63,0.00022989,2]
[359229510,1745851832590,-400.0,0.00022989,2]
[359229511,1745851832605,-8734.63,0.00022989,2]
[359229512,1745851832620,-400.0,0.00022989,2]
[359229513,1745851832635,-507.45,0.00022989,2]
[359229514,1745851832650,-400.0,0.00022989,2]
[359229515,1745851832664,-400.0,0.00022989,2]
[359229516,1745851832679,-400.0,0.00022989,2]
[359229517,1745851832694,-400.0,0.00022989,2]
[359229518,1745851832717,-400.0,0.00022989,2]
[359229519,1745851832736,-425.48,0.00022989,2]
[359229520,1745851832752,-449.88,0.00022989,2]
[359229521,1745851832767,-400.0,0.00022989,2]
[359229522,1745851832784,-400.0,0.00022989,2]
[359229523,1745851832799,-599.26,0.00022989,2]
[359229524,1745851832814,-571.07,0.00022989,2]
[359229525,1745851832829,-400.0,0.00022989,2]
[359229526,1745851832843,-400.0,0.00022989,2]
[359229527,1745851832858,-400.0,0.00022989,2]
[359229528,1745851832872,-500.0,0.00022989,2]
[359229529,1745851832887,-505.29996677,0.00022989,2]
[359229530,1745851832901,-400.0,0.00022989,2]
[359229531,1745851832916,-500.0,0.00022989,2]
[359229532,1745851832929,-400.0,0.00022989,2]
[359229533,1745851832944,-1988.78,0.00022989,2]
[359229534,1745851832959,-400.0,0.00022989,2]
[359229535,1745851832973,-400.0,0.00022989,2]
[359229536,1745851832987,-400.0,0.00022989,2]
[359229537,1745851833119,-400.0,0.00022989,2]
[359229538,1745851833138,-3353.79,0.00022989,2]
[359229539,1745851833148,-3192.79,0.00022989,2]
[359229540,1745851833158,-400.0,0.00022989,2]
[359229541,1745851833167,-2922.32,0.00022989,2]
[359229542,1745851833177,-416.8,0.00022989,2]
[359229543,1745851833187,-400.0,0.00022989,2]
[359229544,1745851833196,-978.06,0.00022989,2]
[359229545,1745851833206,-400.0,0.00022989,2]
[359229546,1745851833215,-400.0,0.00023261,2]
[359229547,1745851833224,-456.34978076,0.00023261,2]
[359229548,1745851833233,-400.0,0.00023261,2]
[359229549,1745851833242,-400.0,0.00023263,2]
[359229550,1745851833252,-1606.16,0.00023263,2]
[359229551,1745851833260,-400.0,0.00023263,2]
[359229552,1745851833270,-400.0,0.00023263,2]
[359229553,1745851833279,-955.43,0.00023263,2]
[359229554,1745851833288,-400.0,0.00023263,2]
[359229555,1745851833298,-400.0,0.00023263,2]
[359229556,1745851833307,-507.45,0.00023263,2]
[359229557,1745851833316,-400.0,0.00023263,2]
[359229558,1745851833326,-400.0,0.00023263,2]
[359229559,1745851833335,-400.0,0.00023263,2]
[359229560,1745851833344,-400.0,0.00023263,2]
[359229561,1745851833354,-400.0,0.00023263,2]
[359229562,1745851833364,-425.48,0.00023263,2]
[359229563,1745851833374,-449.88,0.00023263,2]
[359229564,1745851833384,-400.0,0.00023263,2]
[359229565,1745851833395,-400.0,0.00023263,2]
[359229566,1745851833405,-599.26,0.00023263,2]
[359229567,1745851833416,-571.07,0.00023263,2]
[359229568,1745851833427,-400.0,0.00023263,2]
[359229569,1745851833437,-400.0,0.00023263,2]
[359229570,1745851833447,-400.0,0.00023263,2]
[359229571,1745851833457,-400.0,0.00023263,2]
[359229572,1745851833467,-500.0,0.00023263,2]
[359229573,1745851833476,-400.0,0.00023263,2]
[359229574,1745851833487,-1988.78,0.00023263,2]
[359229575,1745851833496,-400.0,0.00023263,2]
[359229576,1745851833505,-400.0,0.00023263,2]
[359229577,1745851833514,-400.0,0.00023263,2]
[359229578,1745851833523,-400.0,0.00023263,2]
[359229579,1745851833532,-3353.79,0.00023263,2]
[359229580,1745851833542,-3192.79,0.00023263,2]
[359229581,1745851833551,-400.0,0.00023263,2]
[359229582,1745851833561,-2922.32,0.00023263,2]
[359229583,1745851833570,-416.8,0.00023263,2]
[359229584,1745851833583,-400.0,0.00023263,2]
[359229585,1745851833592,-978.06,0.00023263,2]
[359229586,1745851833602,-400.0,0.00023263,2]
[359229587,1745851833612,-2024.61526108,0.00023306,2]
[359229588,1745851833623,-1751.25625761,0.00023486,4]
[359229589,1745851833632,-321.99075492,0.00023535,2]
[359229590,1745851833644,-205.86014315,0.00023535,2]
[359229591,1745851833654,-400.0,0.00023537,2]
[359229592,1745851833664,-1606.16,0.00023537,2]
[359229593,1745851833673,-411.61426084,0.00023537,2]
[359229594,1745851833683,-400.0,0.00023537,2]
[359229595,1745851833692,-955.43,0.00023537,2]
[359229596,1745851833702,-400.0,0.00023537,2]
[359229597,1745851833712,-400.0,0.00023537,2]
[359229598,1745851833721,-507.45,0.00023537,2]
[359229599,1745851833730,-400.0,0.00023537,2]
[359229600,1745851833740,-400.0,0.00023537,2]
[359229601,1745851833749,-400.0,0.00023537,2]
[359229602,1745851833759,-400.0,0.00023537,2]
[359229603,1745851833769,-400.0,0.00023537,2]
[359229604,1745851833779,-425.48,0.00023537,2]
[359229605,1745851833788,-449.88,0.00023537,2]
[359229606,1745851833798,-400.0,0.00023537,2]
[359229607,1745851833807,-599.26,0.00023537,2]
[359229608,1745851833817,-571.07,0.00023537,2]
[359229609,1745851833827,-400.0,0.00023537,2]
[359229610,1745851833836,-400.0,0.00023537,2]
[359229611,1745851833846,-400.0,0.00023537,2]
[359229612,1745851833856,-400.0,0.00023537,2]
[359229613,1745851833866,-500.0,0.00023537,2]
[359229614,1745851833876,-400.0,0.00023537,2]
[359229615,1745851833886,-1988.78,0.00023537,2]
[359229616,1745851833896,-400.0,0.00023537,2]
[359229617,1745851833906,-400.57941477,0.00023537,2]
[359229618,1745851833916,-400.0,0.00023537,2]
[359229619,1745851833926,-400.0,0.00023537,2]
[359229620,1745851833936,-3353.79,0.00023537,2]
[359229621,1745851833946,-3192.79,0.00023537,2]
[359229622,1745851833956,-400.0,0.00023537,2]
[359229623,1745851833966,-2922.32,0.00023537,2]
[359229624,1745851833976,-416.8,0.00023537,2]
[359229625,1745851833993,-400.0,0.00023537,2]
[359229626,1745851834005,-978.06,0.00023537,2]
[359229627,1745851834015,-400.0,0.00023537,2]
[359229628,1745851834024,-167.52297858,0.00023719,2]
[359229629,1745851834035,-400.0,0.00023811,2]
[359229630,1745851834045,-1606.16,0.00023811,2]
[359229631,1745851834055,-400.0,0.00023811,2]
[359229632,1745851834066,-955.43,0.00023811,2]
[359229633,1745851834076,-400.0,0.00023811,2]
[359229634,1745851834086,-400.0,0.00023811,2]
[359229635,1745851834096,-507.45,0.00023811,2]
[359229636,1745851834107,-400.0,0.00023811,2]
[359229637,1745851834118,-400.0,0.00023811,2]
[359229638,1745851834128,-400.0,0.00023811,2]
[359229639,1745851834139,-400.0,0.00023811,2]
[359229640,1745851834149,-400.0,0.00023811,2]
[359229641,1745851834159,-425.48,0.00023811,2]
[359229642,1745851834171,-449.88,0.00023811,2]
[359229643,1745851834180,-400.0,0.00023811,2]
[359229644,1745851834191,-599.26,0.00023811,2]
[359229645,1745851834201,-571.07,0.00023811,2]
[359229646,1745851834212,-400.0,0.00023811,2]
[359229647,1745851834222,-400.0,0.00023811,2]
[359229648,1745851834232,-271.27572786,0.00023811,2]
[359229649,1745851834242,-400.0,0.00023811,2]
[359229650,1745851834252,-500.0,0.00023811,2]
[359229651,1745851834262,-400.0,0.00023811,2]
[359229652,1745851834273,-1988.78,0.00023811,2]
[359229653,1745851834283,-400.0,0.00023811,2]
[359229654,1745851834294,-400.0,0.00023811,2]
[359229655,1745851834304,-400.0,0.00023811,2]
[359229656,1745851834314,-3353.79,0.00023811,2]
[359229657,1745851834324,-3192.79,0.00023811,2]
[359229658,1745851834334,-400.0,0.00023811,2]
[359229659,1745851834344,-2922.32,0.00023811,2]
[359229660,1745851834354,-416.8,0.00023811,2]
[359229661,1745851834364,-329.3345738,0.00023811,2]
[359229662,1745851834374,-978.06,0.00023811,2]
[359229663,1745851834383,-400.0,0.00023811,2]
[359229664,1745851834394,-180.23,0.00024,10]
[359229665,1745851834404,-269.57704133,0.0002407,3]
[359229666,1745851834524,-1751.25625761,0.00024072,5]
[359229667,1745851834534,-400.0,0.00024084,2]
[359229668,1745851834544,-400.0,0.00024084,2]
[359229669,1745851834554,-400.0,0.00024084,2]
[359229670,1745851834565,-400.0,0.00024084,2]
[359229671,1745851834576,-400.0,0.00024084,2]
[359229672,1745851834586,-400.0,0.00024084,2]
[359229673,1745851834596,-400.0,0.00024084,2]
[359229674,1745851834605,-708.12,0.00024084,2]
[359229675,1745851834616,-3216.29,0.00024084,2]
[359229676,1745851834627,-4242.3,0.00024084,2]
[359229677,1745851834636,-3131.2,0.00024084,2]
[359229678,1745851834647,-400.0,0.00024084,2]
[359229679,1745851834657,-2995.89,0.00024084,2]
[359229680,1745851834667,-400.0,0.00024084,2]
[359229681,1745851834677,-400.0,0.00024084,2]
[359229682,1745851834686,-400.0,0.00024084,2]
[359229683,1745851834697,-400.0,0.00024085,2]
[359229684,1745851834706,-1606.16,0.00024085,2]
[359229685,1745851834715,-400.0,0.00024085,2]
[359229686,1745851834724,-955.43,0.00024085,2]
[359229687,1745851834734,-400.0,0.00024085,2]
[359229688,1745851834743,-461.32134305,0.00024085,2]
[359229689,1745851834753,-507.45,0.00024085,2]
[359229690,1745851834762,-400.0,0.00024085,2]
[359229691,1745851834772,-400.0,0.00024085,2]
[359229692,1745851834781,-400.0,0.00024085,2]
[359229693,1745851834790,-400.0,0.00024085,2]
[359229694,1745851834800,-400.0,0.00024085,2]
[359229695,1745851834809,-425.48,0.00024085,2]
[359229696,1745851834819,-449.88,0.00024085,2]
[359229697,1745851834828,-400.0,0.00024085,2]
[359229698,1745851834838,-599.26,0.00024085,2]
[359229699,1745851834848,-571.07,0.00024085,2]
[359229700,1745851834857,-400.0,0.00024085,2]
[359229701,1745851834866,-400.0,0.00024085,2]
[359229702,1745851834875,-200.0,0.00024085,2]
[359229703,1745851834884,-500.0,0.00024085,2]
[359229704,1745851834893,-400.0,0.00024085,2]
[359229705,1745851834902,-1988.78,0.00024085,2]
[359229706,1745851834912,-400.0,0.00024085,2]
[359229707,1745851834923,-400.0,0.00024085,2]
[359229708,1745851834933,-3353.79,0.00024085,2]
[359229709,1745851834942,-3192.79,0.00024085,2]
[359229710,1745851834952,-400.0,0.00024085,2]
[359229711,1745851834961,-2922.32,0.00024085,2]
[359229712,1745851834971,-416.8,0.00024085,2]
[359229713,1745851834981,-978.06,0.00024085,2]
[359229714,1745851834990,-400.0,0.00024085,2]
[359229715,1745851835000,-394.36436021,0.00024358,2]
[359229716,1745851835010,-400.0,0.00024358,2]
[359229717,1745851835020,-400.0,0.00024358,2]
[359229718,1745851835030,-400.0,0.00024358,2]
[359229719,1745851835039,-400.0,0.00024358,2]
[359229720,1745851835049,-538.81467612,0.00024358,2]
[359229721,1745851835058,-400.0,0.00024358,2]
[359229722,1745851835068,-708.12,0.00024358,2]
[359229723,1745851835078,-3216.29,0.00024358,2]
[359229724,1745851835087,-4242.3,0.00024358,2]
[359229725,1745851835096,-3131.2,0.00024358,2]
[359229726,1745851835106,-400.0,0.00024358,2]
[359229727,1745851835115,-2995.89,0.00024358,2]
[359229728,1745851835125,-400.0,0.00024358,2]
[359229729,1745851835134,-400.0,0.00024358,2]
[359229730,1745851835143,-400.0,0.00024358,2]
[359229731,1745851835153,-400.0,0.00024359,2]
[359229732,1745851835162,-1606.16,0.00024359,2]
[359229733,1745851835173,-400.0,0.00024359,2]
[359229734,1745851835183,-955.43,0.00024359,2]
[359229735,1745851835192,-510.22259369,0.00024359,2]
[359229736,1745851835201,-507.45,0.00024359,2]
[359229737,1745851835211,-400.0,0.00024359,2]
[359229738,1745851835221,-165.05362001,0.00024359,2]
[359229739,1745851835230,-400.0,0.00024359,2]
[359229740,1745851835240,-400.0,0.00024359,2]
[359229741,1745851835249,-400.0,0.00024359,2]
[359229742,1745851835259,-425.48,0.00024359,2]
[359229743,1745851835268,-449.88,0.00024359,2]
[359229744,1745851835278,-400.0,0.00024359,2]
[359229745,1745851835287,-599.26,0.00024359,2]
[359229746,1745851835297,-571.07,0.00024359,2]
[359229747,1745851835306,-400.0,0.00024359,2]
[359229748,1745851835316,-400.0,0.00024359,2]
[359229749,1745851835325,-500.0,0.00024359,2]
[359229750,1745851835335,-400.0,0.00024359,2]
[359229751,1745851835344,-1988.78,0.00024359,2]
[359229752,1745851835354,-400.0,0.00024359,2]
[359229753,1745851835363,-400.0,0.00024359,2]
[359229754,1745851835373,-3353.79,0.00024359,2]
[359229755,1745851835382,-3192.79,0.00024359,2]
[359229756,1745851835392,-400.0,0.00024359,2]
[359229757,1745851835401,-835.65445064,0.00024359,2]
[359229758,1745851835420,-960.05583154,0.00024359,2]
[359229759,1745851835432,-1126.60971782,0.00024359,2]
[359229760,1745851835442,-416.8,0.00024359,2]
[359229761,1745851835451,-978.06,0.00024359,2]
[359229762,1745851835460,-400.0,0.00024359,2]
[359229763,1745851835470,-167.52297858,0.00024549,2]
[359229764,1745851835480,-300.92831777,0.00024561,2]
[359229765,1745851835491,-207.26756496,0.00024632,2]
[359229766,1745851835500,-400.0,0.00024632,2]
[359229767,1745851835510,-202.22389928,0.00024632,2]
[359229768,1745851835519,-400.0,0.00024632,2]
[359229769,1745851835528,-400.0,0.00024632,2]
[359229770,1745851835537,-708.12,0.00024632,2]
[359229771,1745851835546,-3216.29,0.00024632,2]
[359229772,1745851835555,-4242.3,0.00024632,2]
[359229773,1745851835564,-1767.11080649,0.00024632,2]
[359229810,1745851837876,-504.50639216,0.00022989,2]
[359229812,1745851837886,-151.0,0.00024358,7]
[359229814,1745851837896,-38.69360784,0.00024632,2]
[359229862,1745851840276,-400.0,0.00022987,2]
[359229863,1745851840286,-99.6130038,0.00022989,2]
[359229868,1745851843912,-400.0,0.00022987,2]
[359229869,1745851843922,-400.0,0.00022987,2]
[359229870,1745851843934,-300.3869962,0.00022989,2]
[359229871,1745851843944,-400.0,0.00023261,2]
[359229872,1745851843953,-400.0,0.00023261,2]
[359229873,1745851843964,-400.0,0.00023261,2]
[359229874,1745851843973,-400.0,0.00023263,2]
[359229875,1745851843981,-200.0,0.00023535,2]
[359229876,1745851843991,-400.0,0.00023535,2]
[359229877,1745851844000,-400.0,0.00023537,2]
[359229878,1745851844011,-368.09290972,0.00023809,2]
[359229879,1745851844022,-400.0,0.00023811,2]
[359229880,1745851844032,-403.66,0.00024084,2]
[359229881,1745851844042,-400.0,0.00024085,2]
[359229882,1745851844052,-403.66,0.00024358,2]
[359229883,1745851844061,-400.0,0.00024359,2]
[359229884,1745851844071,-1325.39558567,0.00024632,2]
[359229885,1745851844081,-400.0,0.00024632,2]
[359229886,1745851844090,-2995.89,0.00024632,2]
[359229887,1745851844100,-400.0,0.00024632,2]
[359229888,1745851844110,-400.0,0.00024632,2]
[359229889,1745851844122,-400.0,0.00024632,2]
[359229890,1745851844140,-403.66,0.00024632,2]
[359229891,1745851844156,-400.0,0.00024633,2]
[359229892,1745851844170,-1606.16,0.00024633,2]
[359229893,1745851844186,-400.0,0.00024633,2]
[359229894,1745851844201,-955.43,0.00024633,2]
[359229895,1745851844217,-507.45,0.00024633,2]
[359229896,1745851844233,-400.0,0.00024633,2]
[359229897,1745851844247,-400.0,0.00024633,2]
[359229898,1745851844261,-400.0,0.00024633,2]
[359229899,1745851844278,-400.0,0.00024633,2]
[359229900,1745851844293,-425.48,0.00024633,2]
[359229901,1745851844306,-449.88,0.00024633,2]
[359229902,1745851844320,-400.0,0.00024633,2]
[359229903,1745851844336,-599.26,0.00024633,2]
[359229904,1745851844351,-571.07,0.00024633,2]
[359229905,1745851844366,-400.0,0.00024633,2]
[359229906,1745851844381,-400.0,0.00024633,2]
[359229907,1745851844392,-500.0,0.00024633,2]
[359229908,1745851844405,-400.0,0.00024633,2]
[359229909,1745851844422,-1988.78,0.00024633,2]
[359229910,1745851844435,-400.0,0.00024633,2]
[359229911,1745851844448,-400.0,0.00024633,2]
[359229912,1745851844462,-3353.79,0.00024633,2]
[359229913,1745851844474,-3192.79,0.00024633,2]
[359229914,1745851844485,-400.0,0.00024633,2]
[359229915,1745851844501,-2922.32,0.00024633,2]
[359229916,1745851844513,-416.8,0.00024633,2]
[359229917,1745851844526,-978.06,0.00024633,2]
[359229918,1745851844540,-400.0,0.00024633,2]
[359229919,1745851844553,-400.0,0.00024633,2]
[359229920,1745851844566,-742.93,0.00024647,3]
[359229921,1745851844581,-112892.48240634,0.00024649,2]
[359229922,1745851844594,-528.42306426,0.00024649,2]
[359229923,1745851844607,-451.17,0.00024649,2]
[359229924,1745851844619,-400.0,0.00024649,2]
[359229925,1745851844632,-400.0,0.00024649,2]
[359229926,1745851844645,-400.0,0.00024649,2]
[359229927,1745851844658,-400.0,0.00024649,2]
[359229928,1745851844673,-225.5729826,0.00024649,2]
[359229929,1745851844689,-420.08,0.00024649,2]
[359229930,1745851844701,-400.0,0.00024649,2]
[359229931,1745851844714,-400.0,0.00024649,2]
[359229932,1745851844727,-512.06623691,0.00024649,2]
[359229933,1745851844739,-501.06697589,0.00024649,2]
[359229934,1745851844752,-808.03,0.00024649,2]
[359229935,1745851844764,-400.0,0.00024649,2]
[359229936,1745851844777,-400.0,0.00024649,2]
[359229937,1745851844790,-400.0,0.00024649,2]
[359229938,1745851844803,-400.0,0.00024649,2]
[359229939,1745851844816,-821.55,0.00024649,2]
[359229940,1745851844829,-400.0,0.00024649,2]
[359229941,1745851844841,-400.0,0.00024649,2]
[359229942,1745851844852,-400.0,0.00024649,2]
[359229943,1745851844864,-400.0,0.00024649,2]
[359229944,1745851844876,-400.0,0.00024649,2]
[359229945,1745851844887,-400.0,0.00024649,2]
[359229946,1745851844899,-509.40740646,0.00024649,2]
[359229947,1745851844912,-400.0,0.00024649,2]
[359229948,1745851844923,-425.26,0.00024649,2]
[359229949,1745851844940,-400.0,0.00024649,2]
[359229950,1745851844952,-400.0,0.00024649,2]
[359229951,1745851844965,-699.4,0.00024649,2]
[359229952,1745851844976,-5304.75,0.00024649,2]
[359229953,1745851844988,-400.0,0.00024649,2]
[359229954,1745851845000,-400.0,0.00024649,2]
[359229955,1745851845012,-425.08,0.00024649,2]
[359229956,1745851845024,-303.90443651,0.00024649,2]
[359229957,1745851845036,-503.51896174,0.00024649,2]
[359229958,1745851845048,-510.27453173,0.00024649,2]
[359229959,1745851845060,-400.0,0.00024649,2]
[359229960,1745851845072,-7725.66,0.00024649,2]
[359229961,1745851845085,-400.0,0.00024649,2]
[359229962,1745851845097,-423.42,0.00024649,2]
[359229963,1745851845109,-400.0,0.00024649,2]
[359229964,1745851845122,-400.0,0.00024649,2]
[359229965,1745851845134,-400.0,0.00024649,2]
[359229966,1745851845146,-218.36977848,0.00024649,2]
[359229967,1745851845157,-400.0,0.00024649,2]
[359229968,1745851845169,-504.74763706,0.00024649,2]
[359229969,1745851845185,-518.41013928,0.00024649,2]
[359229970,1745851845196,-1000.0,0.00024649,2]
[359229971,1745851845208,-400.0,0.00024649,2]
[359229972,1745851845220,-503.36956594,0.00024649,2]
[359229973,1745851845231,-2745.09,0.00024649,2]
[359229974,1745851845242,-503.1113878,0.00024649,2]
[359229976,1745851845254,-400.0,0.00024649,2]
[359229978,1745851845267,-501.44869448,0.00024649,2]
[359229981,1745851845281,-503.7896628,0.00024649,2]
[359229984,1745851845294,-400.0,0.00024649,2]
[359229987,1745851845306,-400.0,0.00024649,2]
[359229989,1745851845320,-400.0,0.00024649,2]
[359229991,1745851845333,-400.0,0.00024649,2]
[359229994,1745851845346,-500.60354667,0.00024649,2]
[359229996,1745851845359,-400.0,0.00024649,2]
[359229998,1745851845373,-400.0,0.00024649,2]
[359230000,1745851845387,-400.0,0.00024649,2]
[359230002,1745851845399,-182.58302339,0.00024649,2]
[359230036,1745851845839,-435.03554591,0.00023262,2]
[359230038,1745851845850,-623.94075559,0.00023262,2]
[359230040,1745851845860,-400.0,0.00023535,2]
[359230042,1745851845871,-400.0,0.00023809,2]
[359230043,1745851846021,-400.0,0.00024083,2]
[359230044,1745851846035,-400.0,0.00024357,2]
[359230045,1745851846044,-400.0,0.00024631,2]
[359230046,1745851846053,-217.41697661,0.00024649,2]
[359230047,1745851846062,-400.0,0.00024649,2]
[359230048,1745851846071,-3075.49,0.00024649,2]
[359230049,1745851846081,-400.0,0.00024649,2]
[359230050,1745851846090,-503.84918272,0.00024649,2]
[359230051,1745851846099,-500.89830436,0.00024649,2]
[359230052,1745851846107,-502.82189837,0.00024649,2]
[359230053,1745851846116,-400.0,0.00024649,2]